Cogmind - Beta 15 @@@ ROGUE MODE // 2025.08.10 @ 06:40:41 Player: naththebg Result: Destroyed by G-67 Veteran with Plasma Rifle Performance ------------- Evolutions (6) 3000 Regions Visited (21) 4200 Robots Destroyed (213) 1065 Value Destroyed (11135) 11135 Prototype IDs (54) 1080 Alien Tech Used (0) 0 Bonus (10473) 10473 TOTAL SCORE: 30953 Bonus ------- Triggered High Security 500 High Alert Combat Kills 3433 Follower Combat Kills 2506 Entered Garrisons 1000 Used RIF Installer 2500 Aligned with FarCom 300 Met Data Miner 300 Friendly Fire -66 Cogmind --------- Core Integrity 0/1150 Matter 210/300 Energy 41/100 System Corruption 21% Temperature Cool (0) Movement Core (50) Location -4/Garrison Parts ------- > --- POWER (2) -------- (None) > --- PROPULSION (5) --- Improved Gyrokinetic Inverter > --- UTILITY (10) ----- Relay Coupler [Swarmer] (42) Relay Coupler [Grunt] (1) > --- WEAPON (2) ------- (None) > --- INVENTORY (5) ---- Improved Remote Datajack Peak State ------------ > --- POWER ------------ Micro Fission Core Improved Quantum Reactor > --- PROPULSION ------- Aerolev Unit Antigrav Array Antigrav Array > --- UTILITY ---------- Experimental Heat Sink Medium Storage Unit Enhanced Optical Array Advanced Reaction Control System Relay Coupler [NC] Relay Coupler [Grunt] Relay Coupler [Duelist] Relay Coupler [Sentry] Relay Coupler [Hunter] > --- WEAPON ----------- Nova Cannon Improved Remote Datajack > --- INVENTORY -------- Improved Gravmag System Antigrav Array Gravity Neutralizer Relay Coupler [Swarmer] Relay Coupler [Sentry] Relay Coupler [Behemoth] Skeleton Box Smartbomb Launcher [Rating: 107] Favorites ----------- Power Light Quantum Reactor Engine Cooled Ion Engine Power Core Micro Fission Core Reactor Light Quantum Reactor Propulsion Aerolev Unit Leg Aluminum Leg Hover Unit Aerolev Unit Flight Unit Improved Flight Unit Utility Medium Storage Unit Device Improved Cooling System Storage Medium Storage Unit Processor Enhanced Optical Array Hackware Relay Coupler [NC] Protection Improved Light Armor Plating Weapon Improved Remote Datajack Energy Gun Heavy EM Shotgun Energy Cannon Nova Cannon Ballistic Gun Light Assault Rifle Ballistic Cannon Hardcell Cannon Launcher Precision Grenade Launcher Special Weapon Improved Remote Datajack Impact Weapon Great Maul Build | -11 -10 -10 -10 -9 -8 -8 -7 -7 -7 -7 -6 -6 -6 -6 -6 -5 -5 -4 -4 -4 -4 ------- Run | Yrd Mat Min Exi Min Mat Sto Fac Low Low Dat Pro Fac Gar Fac Gar Fac Gar Fac Gar Fac Gar Slots Evolved 12 | . . . . . 4 . 2 . . . . 2 . . . 2 . 2 . . . Power 1 | . . . . . . . 1 . . . . . . . . . . . . . . Propulsion 3 | . . . . . 1 . 1 . . . . 1 . . . . . . . . . Utility 8 | . . . . . 3 . . . . . . 1 . . . 2 . 2 . . . Weapon . | . . . . . . . . . . . . . . . . . . . . . . Parts Attached 153 | 6 6 1 1 4 17 11 23 2 2 . 1 6 11 6 12 5 15 1 6 4 13 Power 14 | 1 . . . . 1 . 6 . . . . . 2 . . 1 3 . . . . Engine 7 | 1 . . . . . . 5 . . . . . . . . . 1 . . . . Core 3 | . . . . . 1 . 1 . . . . . . . . . 1 . . . . Reactor 4 | . . . . . . . . . . . . . 2 . . 1 1 . . . . Propulsion 33 | 2 . 1 . 2 3 3 4 2 . . . 2 2 2 1 1 2 . . 2 4 Treads . | . . . . . . . . . . . . . . . . . . . . . . Leg 7 | 2 . 1 . 2 2 . . . . . . . . . . . . . . . . Wheel . | . . . . . . . . . . . . . . . . . . . . . . Hover 25 | . . . . . 1 2 4 2 . . . 2 2 2 1 1 2 . . 2 4 Flight 1 | . . . . . . 1 . . . . . . . . . . . . . . . Utility 65 | 1 2 . 1 1 6 4 7 . 2 . . 3 3 4 10 1 7 1 5 2 5 Device 21 | . 1 . 1 . 2 2 3 . 2 . . . 2 2 1 . 3 1 . . 1 Storage 5 | 1 1 . . . . . . . . . . 1 . . . . . . . . 2 Processor 4 | . . . . . 2 . . . . . . 1 . . . . . . . 1 . Hackware 25 | . . . . . . . 1 . . . . . . 2 9 1 4 . 5 1 2 Protection 10 | . . . . 1 2 2 3 . . . . 1 1 . . . . . . . . Artifact . | . . . . . . . . . . . . . . . . . . . . . . Weapon 41 | 2 4 . . 1 7 4 6 . . . 1 1 4 . 1 2 3 . 1 . 4 Energy Gun 17 | 2 2 . . . 3 3 4 . . . . . . . . . . . 1 . 2 Energy Cannon 9 | . . . . 1 3 . . . . . . 1 1 . 1 . 2 . . . . Ballistic Gun 3 | . 2 . . . . . . . . . . . . . . . 1 . . . . Ballistic Cannon 1 | . . . . . . . . . . . . . . . . . . . . . 1 Launcher 5 | . . . . . 1 1 1 . . . . . 1 . . 1 . . . . . Special Weapon 5 | . . . . . . . 1 . . . . . 2 . . 1 . . . . 1 Impact Weapon 1 | . . . . . . . . . . . 1 . . . . . . . . . . Slashing Weapon . | . . . . . . . . . . . . . . . . . . . . . . Piercing Weapon . | . . . . . . . . . . . . . . . . . . . . . . Special Melee Weapon . | . . . . . . . . . . . . . . . . . . . . . . Unidentified Prototypes 16 | . . . . . 3 4 5 . . . . 1 . . . . 3 . . . . Parts Lost 60 | . 2 . . . . . 4 4 . . 2 . 6 2 6 . 5 3 11 . 15 Power 6 | . . . . . . . . . . . . . 2 . 1 . 1 . 2 . . Propulsion 18 | . . . . . . . . 2 . . 1 . 3 1 3 . . 1 2 . 5 Utility 25 | . . . . . . . 2 1 . . 1 . 1 1 1 . 3 2 6 . 7 Weapon 11 | . 2 . . . . . 2 1 . . . . . . 1 . 1 . 1 . 3 Highest Loss Streak 8 | . 2 . . . . . 1 1 . . 2 . 3 1 4 . 2 2 7 . 8 To Critical Strikes 1 | . . . . . . . . . . . . . . . . . . . . . 1 Average Backups 7 | 3 8 9 10 9 8 8 8 8 8 9 9 8 8 8 8 5 7 7 6 3 2 Power . | . 1 1 1 . . . . . . . . . . . . . . . . . . Propulsion 1 | 2 5 4 4 4 2 2 3 2 . . . . . . . . 1 2 2 2 1 Utility 3 | . 1 1 1 1 2 2 2 3 5 5 5 3 4 4 4 3 3 4 3 1 . Weapon 1 | . 1 3 3 2 2 2 1 1 1 2 2 1 2 3 1 1 1 . . . . Tool/Special . | . . . . . . . . . . . . . . . . . . . . . . Unused Backups 26 | . 4 . 1 5 3 2 3 . . . . . 1 . . 2 2 . 2 . 1 Power 1 | . . . . 1 . . . . . . . . . . . . . . . . . Propulsion 9 | . 4 . . 1 2 . 1 . . . . . . . . . 1 . . . . Utility 10 | . . . . . . 2 2 . . . . . . . . 2 1 . 2 . 1 Weapon 6 | . . . 1 3 1 . . . . . . . 1 . . . . . . . . Tool/Special . | . . . . . . . . . . . . . . . . . . . . . . Average Slot Usage (%) 84 | . 84 85 85 92 94 97 96 83 66 69 69 63 82 94 84 90 90 80 68 27 49 Engine 4 | . 14 14 14 14 7 . 9 7 7 7 7 6 1 . . . . . . . . Core 2 | . . . . . 1 9 3 7 7 7 7 6 . . . . 4 5 4 . . Reactor 4 | . . . . . . . . . . . . . 8 13 11 10 5 5 4 . . Leg 5 | . 28 28 28 28 25 19 . . . . . . . . . . . . . . . Hover 18 | . . . . . . 7 30 29 30 30 28 26 27 28 21 20 20 14 9 6 17 Device 9 | . 1 . . . 6 10 15 14 2 7 5 5 12 15 10 10 6 8 4 2 7 Storage 6 | . 14 14 14 14 9 9 7 7 7 7 7 6 6 6 6 5 5 5 3 . 2 Processor 3 | . . . . . 11 7 . . . . . 4 6 6 6 5 5 5 4 4 3 Hackware 9 | . . . . . . . . . . . . . . 9 13 22 26 25 30 13 11 Protection 4 | . . . . 6 14 16 13 7 7 7 5 2 5 . . . . . . . . Energy Gun 5 | . 18 28 28 21 4 16 12 3 . . . . . . . . . . 1 . . Energy Cannon 3 | . . . . 6 12 . . . . . . 3 5 5 6 4 6 4 . . . Special Weapon 1 | . . . . . . . . 2 . . . . 1 5 5 3 3 4 . . 2 Peak Build Rating 107 | 6 8 7 13 11 33 43 53 52 42 38 41 51 80 80 85 99 101 107 96 35 74 Average Rating 59 | 4 6 6 7 9 25 34 47 43 35 38 37 42 66 74 78 94 93 103 88 26 57 On Entrance 40 | . 6 6 7 7 11 33 40 52 38 38 38 26 51 80 68 74 92 100 86 7 35 Naked Turns . | . . . . . . . . . . . . . . . . . . . . . . Heaviest Build 64 | 14 21 19 19 23 43 43 45 38 36 30 34 42 57 52 51 58 64 51 44 . 17 Greatest Support 72 | 20 20 20 20 23 43 43 46 46 36 36 36 43 51 58 62 72 72 60 52 9 45 Greatest Overweight (x) 5 | 1 1 . . . 1 1 1 1 . . . . 1 1 1 . 1 . . . 5 Average Overweight (x) . | . . . . . . . . . . . . . . . . . . . . . . Largest Inventory Capacity 10 | 8 10 10 10 10 10 10 10 10 10 10 10 10 10 10 10 10 10 10 10 5 5 Average Capacity 9 | 7 9 10 10 10 10 10 10 10 10 10 10 10 10 10 10 10 10 10 8 5 5 Most Carried 10 | 6 10 10 10 10 10 10 10 10 10 10 10 10 10 10 10 10 10 10 9 5 5 Average Carried 9 | 3 8 9 9 9 9 9 9 9 9 10 10 9 9 9 9 7 9 9 7 4 2 Final Capacity 10 | 8 10 10 10 10 10 10 10 10 10 10 10 10 10 10 10 10 10 10 5 5 5 Final Carried 10 | 6 8 10 10 10 10 9 10 9 10 10 10 10 10 10 10 10 10 10 5 5 1 Class Distribution -------------------- 55% | Mutant 28% | Bothacker-Mutant 14% | Commander-Mutant Dominant Class ---------------- Mutant | -10/Materials Mutant | -10/Mines Mutant | -10/Exiles Mutant | -9/Mines Mutant | -8/Materials Commander-Mutant | -8/Storage Mutant | -7/Factory Mutant | -7/Lower Caves Mutant | -7/Lower Caves Mutant | -7/Data Miner Mutant | -6/Proximity Caves Mutant | -6/Factory Mutant | -6/Garrison Bothacker-Mutant | -6/Factory Bothacker-Mutant | -6/Garrison Bothacker-Mutant | -5/Factory Bothacker-Mutant | -5/Garrison Commander-Mutant | -4/Factory Mutant | -4/Garrison Mutant | -4/Factory Mutant | -4/Garrison Resources | -11 -10 -10 -10 -9 -8 -8 -7 -7 -7 -7 -6 -6 -6 -6 -6 -5 -5 -4 -4 -4 -4 ----------- Run | Yrd Mat Min Exi Min Mat Sto Fac Low Low Dat Pro Fac Gar Fac Gar Fac Gar Fac Gar Fac Gar Matter Collected 4741 | 260 21 45 . 43 221 170 465 39 116 . 108 59 791 255 335 344 570 74 400 . 425 Remotely . | . . . . . . . . . . . . . . . . . . . . . . Salvage Created 7836 | . 176 131 . 128 773 686 938 96 . . 221 59 1147 317 416 577 1454 187 320 . 210 Parts 362 | . 9 5 . 7 45 39 49 7 . . 3 5 49 18 8 28 64 9 7 . 10 Haulers Intercepted 7 | . . . . . 2 2 3 . . . . . . . . . . . . . . Recyclers Shooed 7 | . . . . . 2 . 3 . . . . . . 1 . 1 . . . . . Parts Field Recycled . | . . . . . . . . . . . . . . . . . . . . . . Retrieved Matter . | . . . . . . . . . . . . . . . . . . . . . . Parts Self-Destructed 8 | . . . . . . . . 6 . . 2 . . . . . . . . . . Prevented . | . . . . . . . . . . . . . . . . . . . . . . Kills | -11 -10 -10 -10 -9 -8 -8 -7 -7 -7 -7 -6 -6 -6 -6 -6 -5 -5 -4 -4 -4 -4 ------- Run | Yrd Mat Min Exi Min Mat Sto Fac Low Low Dat Pro Fac Gar Fac Gar Fac Gar Fac Gar Fac Gar Combat Hostiles Destroyed 174 | . 5 3 . 3 14 8 11 6 . . . . 33 3 7 15 45 4 12 . 5 Guns 23 | . 5 1 . 1 . 6 8 2 . . . . . . . . . . . . . Cannons 38 | . . . . . 6 . 1 . . . . . 5 3 2 3 13 . . . 5 AOE 100 | . . 2 . 2 5 1 1 4 . . . . 28 . 2 10 29 4 12 . . Classes Destroyed 18 | . 3 . . 2 5 1 2 . . . . . 1 . . 1 1 1 1 . . Worker 8 | . . . . 1 1 . 3 . . . . . . 1 . 2 . . . . . Builder 5 | . . . . . 2 1 1 . . . . . . . . 1 . . . . . Tunneler 2 | . . . . . . . 1 . . . . . . 1 . . . . . . . Hauler 7 | . . . . . 2 2 3 . . . . . . . . . . . . . . Recycler 1 | . . . . . . . . . . . . . . . . 1 . . . . . Operator 3 | . . . . . 1 1 1 . . . . . . . . . . . . . . Watcher 12 | . 1 . . . 1 2 3 . . . . 2 . 3 . . . . . . . Swarmer 61 | . 3 . . . 4 . 2 3 . . . . 16 1 . 7 25 . . . . Cutter 2 | . . . . . . . . . . . . . . . . . . . 2 . . Saboteur 1 | . . . . . . . . . . . . . . . . . . 1 . . . Grunt 55 | . 2 3 . 2 5 3 4 . . . . . 7 1 4 4 11 2 7 . . Brawler 6 | . . . . . . 1 . . . . . . 1 1 . . 3 . . . . Duelist 2 | . . . . 1 . . . . . . . . . . . . 1 . . . . Sentry 18 | . . . . . 4 3 2 . . . . . 4 . 1 1 3 . . . . Specialist 9 | . . . . . . . . . . . . . 4 . . . 2 1 2 . . Hunter 8 | . . . . . 1 1 1 1 . . . . . . 2 2 . . . . . Programmer 11 | . . . . . . . 2 2 . . . . 1 . . 1 . . . . 5 Behemoth 2 | . . . . . . . . . . . . . . . . . 1 . 1 . . Best Kill Streak 20 | . 3 2 . 3 10 4 5 3 . . . 1 6 2 3 7 20 4 4 . 2 Combat Bots Only 20 | . 3 2 . 3 4 2 2 3 . . . . 6 1 3 7 20 4 4 . 2 Max Kills in Single Turn 5 | . 1 2 . 2 4 2 1 1 . . . 1 4 2 1 4 5 3 2 . 1 Gunslinging . | . . . . . . . . . . . . . . . . . . . . . . Exploded 5 | . . 1 . 2 2 1 1 1 . . . . 4 . 1 4 5 3 2 . . Melee . | . . . . . . . . . . . . . . . . . . . . . . Uniques/NPCs Destroyed . | . . . . . . . . . . . . . . . . . . . . . . Combat | -11 -10 -10 -10 -9 -8 -8 -7 -7 -7 -7 -6 -6 -6 -6 -6 -5 -5 -4 -4 -4 -4 -------- Run | Yrd Mat Min Exi Min Mat Sto Fac Low Low Dat Pro Fac Gar Fac Gar Fac Gar Fac Gar Fac Gar Hostile Shots Fired 906 | . 45 9 . 3 27 14 205 37 . . 9 . 142 15 53 8 61 29 84 . 165 Missed 396 | . 15 5 . 1 9 5 106 14 . . 2 . 64 4 21 5 17 14 40 . 74 Hits 510 | . 30 4 . 2 18 9 99 23 . . 7 . 78 11 32 3 44 15 44 . 91 Melee 10 | . . . . . . . . . . . . . . 1 . . . . 9 . . Projectile 500 | . 30 4 . 2 18 9 99 23 . . 7 . 78 10 32 3 44 15 35 . 91 AOE 3 | . . . . . . . . . . . . . . . . . . 1 2 . . Critical Strikes 36 | . . . . . 1 1 4 2 . . . . 2 2 . . 2 2 11 . 9 Part Disruptions 2 | . . . . . . . 1 1 . . . . . . . . . . . . . Damage Taken 8987 | . 266 44 . 21 234 135 1392 377 . . 137 . 1215 333 418 77 997 507 1023 . 1811 Core 1981 | . 78 23 . . 21 29 182 . . . 18 . 197 76 44 23 138 44 406 . 702 Absorbed by Shields 46 | . . . . . . . . . . . . . 2 . . . . . . . 44 Redirected to Shielding 122 | . . . . . . . 122 . . . . . . . . . . . . . . Regen/Repaired (Parts) 256 | . . . . . . . 33 . . . . . . . . 75 148 . . . . Core Remaining (%) 77 | 100 . . . 59 . 90 . . . . 71 . . . 62 . 83 . . . . Volleys Fired 696 | . 28 6 . 4 29 28 72 21 . . . 6 106 50 62 53 153 4 38 . 36 Largest 2 | . 2 2 . 2 2 2 2 2 . . . 1 2 2 2 1 2 1 1 . 1 Hottest 211 | . 80 80 . 80 125 100 160 160 . . . 90 180 180 180 113 211 113 65 . 75 Shots Fired 854 | . 43 12 . 8 47 53 132 22 . . . 6 118 51 64 53 165 4 39 . 37 Gun 270 | . 43 12 . 8 9 50 122 12 . . . . . . . . . . 9 . 5 Cannon 408 | . . . . . 35 3 7 . . . . 6 72 34 46 36 143 1 . . 25 Launcher 122 | . . . . . 3 . . 10 . . . . 43 2 6 6 19 3 30 . . Special 54 | . . . . . . . 3 . . . . . 3 15 12 11 3 . . . 7 Kinetic 36 | . 11 . . . . . . . . . . . . . . . . . . . 25 Thermal 371 | . . . . . . . 17 12 . . . 6 72 34 46 36 143 1 . . 4 Explosive 118 | . . . . . 3 . . 10 . . . . 43 . 4 6 19 3 30 . . Electromagnetic 275 | . 32 12 . 8 44 53 112 . . . . . . 2 2 . . . 9 . 1 Robot Hit Streak 38 | . 5 3 . 7 20 13 20 12 . . . 1 38 4 15 7 17 6 8 . 5 Robot Miss Streak 6 | . 5 1 . 1 4 3 5 6 . . . 3 1 4 1 2 2 . 1 . 2 Penetration Max . | . . . . . . . . . . . . . . . . . . . . . . Secondary Targets 3 | . 1 1 . . . . 1 . . . . . . . . . . . . . . Max Gunslinging Chain 1 | . 1 1 . . . . 1 . . . . . . . . . . . . . . Shots Hit Robots 506 | . 22 5 . 7 38 39 95 18 . . 4 2 92 27 32 26 75 1 2 . 21 Core Hits 401 | . 9 5 . 6 24 30 60 11 . . 1 2 78 12 19 24 59 11 44 . 6 Critical Kills 6 | . . . . . . . . . . . 1 . 1 . 2 2 . . . . . Critical Parts Destroyed 1 | . . . . . . . . . . . 1 . . . . . . . . . . Critical Strikes 12 | . . . . . 3 . . . . . 2 . 1 . 2 2 . . . . 2 Burn 1 | . . . . . . . . . . . . . . . . . . . . . 1 Meltdown 5 | . . . . . . . . . . . . . 1 . 2 2 . . . . . Blast 1 | . . . . . . . . . . . . . . . . . . . . . 1 Corrupt 3 | . . . . . 3 . . . . . . . . . . . . . . . . Smash 2 | . . . . . . . . . . . 2 . . . . . . . . . . Melee Attacks 4 | . . . . . . . . . . . 4 . . . . . . . . . . Impact 4 | . . . . . . . . . . . 4 . . . . . . . . . . Slashing . | . . . . . . . . . . . . . . . . . . . . . . Piercing . | . . . . . . . . . . . . . . . . . . . . . . Sneak Attacks . | . . . . . . . . . . . . . . . . . . . . . . Combat Hostiles . | . . . . . . . . . . . . . . . . . . . . . . Follow-up Attacks . | . . . . . . . . . . . . . . . . . . . . . . Damage Inflicted 28001 | . 292 241 . 218 1488 1027 2397 757 . . 393 55 5955 566 1235 2022 6395 564 3668 . 728 Guns 3676 | . 278 93 . 93 139 907 1909 214 . . . . . . . . . . . . 43 Cannons 8240 | . . . . . 764 . 179 . . . . 55 1982 441 602 804 2708 42 . . 663 Explosions 15513 | . . 148 . 93 574 120 267 543 . . . . 3973 125 633 1218 3687 522 3610 . . Melee 393 | . . . . . . . . . . . 393 . . . . . . . . . . Ramming 179 | . 14 . . 32 11 . 42 . . . . . . . . . . . 58 . 22 Kinetic 715 | . 52 . . . . . . . . . . . . . . . . . . . 663 Thermal 8170 | . . 148 . 93 233 120 685 214 . . . 55 1982 441 602 804 2708 42 . . 43 Explosive 14185 | . . . . . 341 . . 543 . . . . 3973 . 291 1218 3687 522 3610 . . Electromagnetic 4359 | . 226 93 . 93 903 907 1670 . . . . . . 125 342 . . . . . . Impact 393 | . . . . . . . . . . . 393 . . . . . . . . . . Slashing . | . . . . . . . . . . . . . . . . . . . . . . Piercing . | . . . . . . . . . . . . . . . . . . . . . . Highest Corruption 21 | . . . . . . . 5 6 6 2 2 . . 1 1 . . 4 11 11 21 Average Corruption 4 | . . . . . . . 1 5 3 2 2 . . 1 1 . . 3 5 11 14 Corruption Purged 4 | . . . . . . . . . 4 . . . . . . . . . . . . Corruption Blocked . | . . . . . . . . . . . . . . . . . . . . . . Effects 77 | . . . . . . . 17 4 4 2 3 . . . 2 . . . 11 12 22 Message Errors 17 | . . . . . . . 4 2 1 . . . . . 1 . . . 2 3 4 Matter Fused 23 | . . . . . . . 6 1 1 . 2 . . . . . . . 2 3 8 Heat Flow Errors 4 | . . . . . . . 2 . . . . . . . . . . . 1 . 1 Energy Discharges 7 | . . . . . . . . . 1 2 . . . . . . . . 2 . 2 Parts Fused 3 | . . . . . . . . . 1 . . . . . . . . . 1 1 . Data Loss (minor) 11 | . . . . . . . 3 . . . . . . . 1 . . . 2 3 2 Data Loss (major) 4 | . . . . . . . . 1 . . . . . . . . . . . 1 2 Misfires 3 | . . . . . . . 1 . . . . . . . . . . . 1 . 1 Alerts 1 | . . . . . . . . . . . 1 . . . . . . . . . . Misdirections 3 | . . . . . . . . . . . . . . . . . . . . 1 2 Weapon Failures 1 | . . . . . . . 1 . . . . . . . . . . . . . . Overload Shots . | . . . . . . . . . . . . . . . . . . . . . . Overflow Damage 818 | . . . . . 44 . 22 8 . . 229 . 46 7 35 91 217 1 71 . 47 Projectiles 175 | . . . . . 32 . . . . . . . 2 7 10 3 74 . . . 47 Explosions 414 | . . . . . 12 . 22 8 . . . . 44 . 25 88 143 1 71 . . Melee 229 | . . . . . . . . . . . 229 . . . . . . . . . . Knockbacks 12 | . . . . 1 . . 1 . . . 1 . . . . . . . . . 9 Impact 4 | . . . . 1 . . 1 . . . 1 . . . . . . . . . 1 Kinetic 7 | . . . . . . . . . . . . . . . . . . . . . 7 Secondary 1 | . . . . . . . . . . . . . . . . . . . . . 1 Self-Inflicted Damage 370 | . . . . . . . 21 20 . . . . 232 28 26 . . 6 27 . 10 Shots 20 | . . . . . . . . 2 . . . . 13 3 1 . . 1 . . . Rammed 13 | . . . . . . . 1 . . . . . . . . . . . 8 . 4 Targets Rammed 20 | . 2 . . 4 1 . 1 . . . . . . . . . . . 8 . 4 Kicked 7 | . 2 . . 4 1 . . . . . . . . . . . . . . . . Crushed . | . . . . . . . . . . . . . . . . . . . . . . Highest Temperature 425 | . 243 99 . 66 425 45 242 42 . . 21 4 410 346 424 365 318 17 194 . 65 Average Temperature 88 | . 121 41 . 41 72 10 34 8 . . 11 2 144 138 111 106 74 16 82 . 45 Received Heat Transfer 1492 | . 27 27 . 12 63 72 309 36 . . 57 . 279 99 132 18 102 60 112 . 87 Effects 9 | . . . . . . . . . . . . . 3 . 4 1 1 . . . . Shutdowns 1 | . . . . . . . . . . . . . . . 1 . . . . . . Energy Bleed 1 | . . . . . . . . . . . . . . . 1 . . . . . . Interference 6 | . . . . . . . . . . . . . 3 . 2 . 1 . . . . Damage (minor) 1 | . . . . . . . . . . . . . . . . 1 . . . . . Siege Activations . | . . . . . . . . . . . . . . . . . . . . . . Martial Activations . | . . . . . . . . . . . . . . . . . . . . . . Shielding Activations . | . . . . . . . . . . . . . . . . . . . . . . Robots Disrupted 1 | . . . . . . 1 . . . . . . . . . . . . . . . Combat Hostiles . | . . . . . . . . . . . . . . . . . . . . . . Robots Corrupted 5 | . . . . . 3 1 . . . . 1 . . . . . . . . . . Combat Hostiles 5 | . . . . . 3 1 . . . . 1 . . . . . . . . . . Parts Fried 28 | . 1 . . 1 6 11 7 . . . 2 . . . . . . . . . . Impact Corruptions 7 | . . . . . . . . . . . 7 . . . . . . . . . . Robots Melted 10 | . . . . . . . 1 . . . . . 1 . 3 2 3 . . . . Combat Hostiles 9 | . . . . . . . 1 . . . . . . . 3 2 3 . . . . Parts Melted 32 | . . . . . . . 6 1 . . . . 3 . 10 3 9 . . . . Heat Transferred 10678 | . . 200 . 100 250 150 1100 425 . . . 74 3005 592 766 740 3039 37 . . 200 Parts Sabotaged . | . . . . . . . . . . . . . . . . . . . . . . Parts Stolen . | . . . . . . . . . . . . . . . . . . . . . . Parts Stripped . | . . . . . . . . . . . . . . . . . . . . . . Power Chain Reactions 8 | . . 1 . 1 2 1 3 . . . . . . . . . . . . . . Alert | -11 -10 -10 -10 -9 -8 -8 -7 -7 -7 -7 -6 -6 -6 -6 -6 -5 -5 -4 -4 -4 -4 ------- Run | Yrd Mat Min Exi Min Mat Sto Fac Low Low Dat Pro Fac Gar Fac Gar Fac Gar Fac Gar Fac Gar Maximum Alert Level 5 | . . . . . 1 1 3 . . . . . 4 3 3 3 5 5 5 4 3 Low Security (%) 21 | 100 100 100 . 100 71 59 7 . . . . 100 10 . . . . . . . . Level 1 10 | . . . . . 28 40 17 . . . . . 8 . 6 39 . . . . . Level 2 22 | . . . . . . . 67 . . . . . 17 50 60 32 . . . . . Level 3 18 | . . . . . . . 6 . . . . . 44 49 32 28 1 . . 18 100 Level 4 8 | . . . . . . . . . . . . . 19 . . . 11 55 4 81 . Level 5 18 | . . . . . . . . . . . . . . . . . 85 33 95 . . High Security . | . . . . . . . . . . . . . . . . . . 11 . . . Max Security . | . . . . . . . . . . . . . . . . . . . . . . Peak Influence 3166 | . 80 153 . 79 242 386 816 . . . . 60 1383 785 880 968 3166 2183 2365 1204 861 Initial 1661 | . . . . . . 91 171 . . . . . 8 725 337 462 669 1661 1528 1204 751 Average 888 | . 22 75 . 12 108 180 441 . . . . 14 791 639 639 526 2387 1621 2119 1140 800 Influence Increases 11078 | . 144 222 . 84 436 525 1368 235 . . 10 103 1455 313 683 912 2647 742 977 . 222 Destroy 0b10 Robot/C 4760 | . 100 80 . 60 280 200 460 120 . . . . 780 120 320 440 1120 220 340 . 120 Destroy 0b10 Robot/NC 275 | . 5 . . 5 35 30 85 . . . 10 10 15 35 . 30 10 5 . . . Destroy Leader 666 | . 22 20 . 10 76 78 138 40 . . . 4 30 16 30 72 50 40 30 . 10 Allied During Kill 1490 | . . 3 . . . 174 148 . . . . . 93 8 55 192 460 262 87 . 8 Successful Hack 150 | . 17 6 . . 5 12 26 . . . . 26 . 28 . 2 14 . 14 . . Disable Machine 600 | . . 90 . . . 30 45 . . . . . . 60 45 30 195 105 . . . Anti-Garrison Action 1000 | . . . . . . . . . . . . . 250 . 150 . 450 . 100 . 50 Destroy Structure 1327 | . . 23 . 9 25 1 16 . . . . 3 287 31 68 146 348 110 241 . 19 Partial Spotted 30 | . . . . . . . 15 . . . . . . . 15 . . . . . . Lose Combat Pursuer 780 | . . . . . 15 . 435 75 . . . 60 . 15 . . . . 165 . 15 Influence Decreases 10375 | . 144 123 99 84 219 364 933 441 226 381 10 91 84 1214 285 836 437 1725 865 1221 593 Entered New Map 6316 | . . . 99 . . 126 207 301 116 381 . . 4 658 145 418 287 1505 655 1091 323 Time Decay 2699 | . 124 123 . 84 219 238 586 100 110 . 10 91 . 326 . 368 . 190 . 130 . Lost Part 580 | . 20 . . . . . 40 40 . . . . 60 20 60 . 50 30 110 . 150 Lost Ally 630 | . . . . . . . 100 . . . . . 20 60 80 50 100 . 100 . 120 Purge Threat 150 | . . . . . . . . . . . . . . 150 . . . . . . . Squads Dispatched 29 | . . . . . 2 . 16 . . . . 1 . 1 . 3 . 3 . 3 . Investigation 8 | . . . . . . . 5 . . . . . . 1 . 1 . . . 1 . Extermination 9 | . . . . . . . 6 . . . . 1 . . . 1 . 1 . . . Reinforcement 7 | . . . . . 2 . 4 . . . . . . . . . . . . 1 . Assault 2 | . . . . . . . . . . . . . . . . . . 1 . 1 . Garrison 3 | . . . . . . . 1 . . . . . . . . 1 . 1 . . . Intercept . | . . . . . . . . . . . . . . . . . . . . . . Searches Triggered . | . . . . . . . . . . . . . . . . . . . . . . Construction Impeded 2 | . . . . . 1 . 1 . . . . . . . . . . . . . . Haulers Reinforced 1 | . . . . . . . 1 . . . . . . . . . . . . . . Active Scanning Responses . | . . . . . . . . . . . . . . . . . . . . . . Cargo Convoy Interrupts 1 | . . . . . . . 1 . . . . . . . . . . . . . . Stealth | -11 -10 -10 -10 -9 -8 -8 -7 -7 -7 -7 -6 -6 -6 -6 -6 -5 -5 -4 -4 -4 -4 --------- Run | Yrd Mat Min Exi Min Mat Sto Fac Low Low Dat Pro Fac Gar Fac Gar Fac Gar Fac Gar Fac Gar Distress Signals 7 | . . . . . 1 2 1 . . . . . . . 1 1 1 . . . . Communications Jammed . | . . . . . . . . . . . . . . . . . . . . . . Distress Signals . | . . . . . . . . . . . . . . . . . . . . . . Times Spotted 324 | . 8 3 . 3 18 14 66 10 . . 4 4 33 19 18 20 49 12 23 . 20 Peak Tracking Total 10 | . 3 2 . 3 3 3 10 5 . . 4 4 5 4 6 4 9 6 6 1 8 Tactical Retreats 29 | . . . . . 1 . 17 3 . . . 1 . 1 . . . . 5 . 1 Traps | -11 -10 -10 -10 -9 -8 -8 -7 -7 -7 -7 -6 -6 -6 -6 -6 -5 -5 -4 -4 -4 -4 ------- Run | Yrd Mat Min Exi Min Mat Sto Fac Low Low Dat Pro Fac Gar Fac Gar Fac Gar Fac Gar Fac Gar Traps Triggered 37 | . 1 . . . . . 7 . . . . 1 5 4 . 2 8 . 1 1 7 Indirectly . | . . . . . . . . . . . . . . . . . . . . . . Trap Hack Attempts . | . . . . . . . . . . . . . . . . . . . . . . Triggered . | . . . . . . . . . . . . . . . . . . . . . . Disarmed . | . . . . . . . . . . . . . . . . . . . . . . Reprogrammed . | . . . . . . . . . . . . . . . . . . . . . . Reused . | . . . . . . . . . . . . . . . . . . . . . . Traps Extracted . | . . . . . . . . . . . . . . . . . . . . . . Installed . | . . . . . . . . . . . . . . . . . . . . . . Triggered . | . . . . . . . . . . . . . . . . . . . . . . Machines | -11 -10 -10 -10 -9 -8 -8 -7 -7 -7 -7 -6 -6 -6 -6 -6 -5 -5 -4 -4 -4 -4 ---------- Run | Yrd Mat Min Exi Min Mat Sto Fac Low Low Dat Pro Fac Gar Fac Gar Fac Gar Fac Gar Fac Gar Machines Disabled 56 | . . 6 . . . 2 3 . . . . . 5 4 6 2 18 7 1 . 2 Max in Single Turn 6 | . . 6 . . . 1 1 . . . . . 2 1 1 1 1 2 . . 1 Garrison Relay 13 | . . . . . . . . . . . . . 3 . 3 . 5 . 1 . 1 Machines Repaired . | . . . . . . . . . . . . . . . . . . . . . . Machines Dismantled . | . . . . . . . . . . . . . . . . . . . . . . Machines Sabotaged . | . . . . . . . . . . . . . . . . . . . . . . Overloaded Fab Kills . | . . . . . . . . . . . . . . . . . . . . . . Hacking | -11 -10 -10 -10 -9 -8 -8 -7 -7 -7 -7 -6 -6 -6 -6 -6 -5 -5 -4 -4 -4 -4 --------- Run | Yrd Mat Min Exi Min Mat Sto Fac Low Low Dat Pro Fac Gar Fac Gar Fac Gar Fac Gar Fac Gar Machines Accessed 50 | . 2 1 2 2 2 2 14 1 . 3 . 3 1 7 1 3 1 2 2 1 . Terminals 28 | . 2 1 . . 2 2 8 . . . . 2 1 4 1 1 1 1 2 . . Fabricators . | . . . . . . . . . . . . . . . . . . . . . . Repair Stations 2 | . . . . . . . 1 . . . . . . . . 1 . . . . . Recycling Units 5 | . . . . . . . 3 . . . . . . 2 . . . . . . . Scanalyzers . | . . . . . . . . . . . . . . . . . . . . . . Garrison Access 7 | . . . . . . . 2 . . . . 1 . 1 . 1 . 1 . 1 . Total Hacks 115 | . 7 2 5 2 6 5 29 1 . 24 . 3 3 11 1 6 1 3 5 1 . Successful 67 | . 3 1 5 2 2 3 6 1 . 24 . 3 . 9 . 4 1 1 1 1 . Failed 48 | . 4 1 . . 4 2 23 . . . . . 3 2 1 2 . 2 4 . . Catastrophic 11 | . . . . . 1 . 6 . . . . . . . . . . 1 3 . . Database Lockouts . | . . . . . . . . . . . . . . . . . . . . . . Manual 25 | . 1 2 1 . 2 3 7 . . . . 2 . 4 . 3 . . . . . Terminals 59 | . 7 2 . . 6 5 16 . . . . 2 3 7 1 2 1 2 5 . . Fabricators . | . . . . . . . . . . . . . . . . . . . . . . Repair Stations 5 | . . . . . . . 2 . . . . . . . . 3 . . . . . Recycling Units 8 | . . . . . . . 6 . . . . . . 2 . . . . . . . Scanalyzers . | . . . . . . . . . . . . . . . . . . . . . . Garrison Access 11 | . . . . . . . 5 . . . . 1 . 2 . 1 . 1 . 1 . Terminal Hacks 41 | . 2 1 5 2 1 1 . 1 . 24 . . . 2 . . 1 . 1 . . Record 10 | . . . 4 . . . . . . 6 . . . . . . . . . . . Part Schematic 11 | . . . . . . . . . . 11 . . . . . . . . . . . Robot Schematic 4 | . . . . . . . . . . 4 . . . . . . . . . . . Prototype ID Bank 7 | . 1 1 . . 1 . . . . 3 . . . 1 . . . . . . . Open Door 3 | . . . . 2 . . . 1 . . . . . . . . . . . . . Open DSF 1 | . . . . . . . . . . . . . . 1 . . . . . . . Level Access Points 1 | . . . . . . 1 . . . . . . . . . . . . . . . Branch Access Points 1 | . 1 . . . . . . . . . . . . . . . . . . . . Emergency Access Points 2 | . . . . . . . . . . . . . . . . . 1 . 1 . . Proto ID Catalog 1 | . . . 1 . . . . . . . . . . . . . . . . . . Fabricator Hacks . | . . . . . . . . . . . . . . . . . . . . . . Repair Station Hacks 2 | . . . . . . . . . . . . . . . . 2 . . . . . Scan Component 1 | . . . . . . . . . . . . . . . . 1 . . . . . Repair 1 | . . . . . . . . . . . . . . . . 1 . . . . . Recycling Unit Hacks 5 | . . . . . . . 3 . . . . . . 2 . . . . . . . Retrieve Components 5 | . . . . . . . 3 . . . . . . 2 . . . . . . . Scanalyzer . | . . . . . . . . . . . . . . . . . . . . . . Garrison Access Hacks 6 | . . . . . . . . . . . . 1 . 2 . 1 . 1 . 1 . Unlock Access 5 | . . . . . . . . . . . . 1 . 1 . 1 . 1 . 1 . Coupler Status 1 | . . . . . . . . . . . . . . 1 . . . . . . . Unauthorized Hacks 13 | . 1 . . . 1 2 3 . . . . 2 . 3 . 1 . . . . . Terminals 11 | . 1 . . . 1 2 2 . . . . 2 . 3 . . . . . . . Botnet 11 | . 1 . . . 1 2 2 . . . . 2 . 3 . . . . . . . Fabricators . | . . . . . . . . . . . . . . . . . . . . . . Repair Stations 2 | . . . . . . . 1 . . . . . . . . 1 . . . . . Mechanics 1 | . . . . . . . . . . . . . . . . 1 . . . . . Patch 1 | . . . . . . . 1 . . . . . . . . . . . . . . Recycling Units . | . . . . . . . . . . . . . . . . . . . . . . Scanalyzers . | . . . . . . . . . . . . . . . . . . . . . . Garrison Access . | . . . . . . . . . . . . . . . . . . . . . . Data Cores Recovered 2 | . . . . . . 1 1 . . . . . . . . . . . . . . Used 1 | . . . . . . . 1 . . . . . . . . . . . . . . Hacking Detections 32 | . 2 1 . . 2 2 14 . . . . 2 1 2 1 2 . 1 2 . . Full Trace Events 3 | . . . . . . . 2 . . . . . . . . . . . 1 . . Feedback Events 1 | . . . . . . . 1 . . . . . . . . . . . . . . Hackware Fried 1 | . . . . . . . 1 . . . . . . . . . . . . . . Feedback Blocked . | . . . . . . . . . . . . . . . . . . . . . . Robot Schematics Acquired 4 | . . . . . . . . . . 4 . . . . . . . . . . . Robots Built . | . . . . . . . . . . . . . . . . . . . . . . Authchips . | . . . . . . . . . . . . . . . . . . . . . . Time . | . . . . . . . . . . . . . . . . . . . . . . Total Robot Build Rating . | . . . . . . . . . . . . . . . . . . . . . . Part Schematics Acquired 11 | . . . . . . . . . . 11 . . . . . . . . . . . Parts Built . | . . . . . . . . . . . . . . . . . . . . . . Authchips . | . . . . . . . . . . . . . . . . . . . . . . Time . | . . . . . . . . . . . . . . . . . . . . . . Total Part Build Rating . | . . . . . . . . . . . . . . . . . . . . . . Parts Repaired 1 | . . . . . . . . . . . . . . . . 1 . . . . . Time 60 | . . . . . . . . . . . . . . . . 60 . . . . . Parts Recycled . | . . . . . . . . . . . . . . . . . . . . . . Recycled Matter . | . . . . . . . . . . . . . . . . . . . . . . Retrieved Matter . | . . . . . . . . . . . . . . . . . . . . . . Retrieved Components 13 | . . . . . . . 9 . . . . . . 4 . . . . . . . Parts Scanalyzed . | . . . . . . . . . . . . . . . . . . . . . . Part Schematics Acquired . | . . . . . . . . . . . . . . . . . . . . . . Parts Damaged . | . . . . . . . . . . . . . . . . . . . . . . Bothacking | -11 -10 -10 -10 -9 -8 -8 -7 -7 -7 -7 -6 -6 -6 -6 -6 -5 -5 -4 -4 -4 -4 ------------ Run | Yrd Mat Min Exi Min Mat Sto Fac Low Low Dat Pro Fac Gar Fac Gar Fac Gar Fac Gar Fac Gar Used RIF Installer 5 | . . . . . . . . . . . . . 1 . 2 . 1 . . . 1 Coupler Efficiency 1 | . . . . . . . . . . . . . . . . . 1 . . . . Command Fork 1 | . . . . . . . . . . . . . . . . . . . . . 1 Robot Detection 1 | . . . . . . . . . . . . . . . 1 . . . . . . Patrol Navigation 1 | . . . . . . . . . . . . . . . 1 . . . . . . Robots Hacked 31 | . . . . . . . 1 . . . . . . 6 9 6 3 . . . 6 Non-combat 9 | . . . . . . . 1 . . . . . . 4 . 4 . . . . . Combat 22 | . . . . . . . . . . . . . . 2 9 2 3 . . . 6 Robot Hacks Applied 37 | . . . . . . . 1 . . . . . . 8 11 8 3 . . . 6 parse_system 3 | . . . . . . . . . . . . . . 1 1 1 . . . . . find_chute 1 | . . . . . . . 1 . . . . . . . . . . . . . . map_walls 1 | . . . . . . . . . . . . . . 1 . . . . . . . purge_threat 1 | . . . . . . . . . . . . . . 1 . . . . . . . block_reporting 2 | . . . . . . . . . . . . . . 2 . . . . . . . mark_security 1 | . . . . . . . . . . . . . . . . 1 . . . . . find_shortcuts 1 | . . . . . . . . . . . . . . . 1 . . . . . . find_garrison 1 | . . . . . . . . . . . . . . . . 1 . . . . . spike_heat 1 | . . . . . . . . . . . . . . 1 . . . . . . . overwrite_iff 4 | . . . . . . . . . . . . . . . 3 . 1 . . . . streamctrl_low 1 | . . . . . . . . . . . . . . . . 1 . . . . . streamctrl_high 1 | . . . . . . . . . . . . . . 1 . . . . . . . formatsys_low 3 | . . . . . . . . . . . . . . . . 3 . . . . . formatsys_high 16 | . . . . . . . . . . . . . . 1 6 1 2 . . . 6 Relay Couplers Released 48 | . . . . . . . . . . . . . 10 . 10 . 19 . 4 . 5 Machine Destruction 48 | . . . . . . . . . . . . . 10 . 10 . 19 . 4 . 5 Attached 24 | . . . . . . . . . . . . . . 2 9 1 4 . 5 1 2 Fabnet Peak Effective % . | . . . . . . . . . . . . . . . . . . . . . . Robots Rewired 23 | . . . . . . 1 1 . . . . . 3 . . . 18 . . . . Allies Hacked 1 | . . . . . . . . . . . . . . . . . . . . . 1 Hacks Repelled . | . . . . . . . . . . . . . . . . . . . . . . Allies | -11 -10 -10 -10 -9 -8 -8 -7 -7 -7 -7 -6 -6 -6 -6 -6 -5 -5 -4 -4 -4 -4 -------- Run | Yrd Mat Min Exi Min Mat Sto Fac Low Low Dat Pro Fac Gar Fac Gar Fac Gar Fac Gar Fac Gar Total Allies 60 | . . 1 . . . 11 1 . . . . . 3 2 9 4 23 . . . 6 Largest Group 20 | . . 1 1 . . 10 10 . . . . . 2 2 4 6 20 16 5 . 4 Highest-Rated Group 693 | . . 31 31 . . 173 167 . . . . . 114 114 121 180 693 637 262 . 188 Highest-Rated Ally 85 | . . 31 31 . . 29 34 . . . . . 85 85 41 41 68 68 68 . 49 Total Orders 48 | . . . . . 2 1 . . . . . . . . 2 20 17 6 . . . STAY 12 | . . . . . . . . . . . . . . . 1 5 3 3 . . . FOLLOW 16 | . . . . . . . . . . . . . . . 1 5 7 3 . . . AID 17 | . . . . . . . . . . . . . . . . 10 7 . . . . DROP 1 | . . . . . . 1 . . . . . . . . . . . . . . . RETURN 2 | . . . . . 2 . . . . . . . . . . . . . . . . Ally Attacks 458 | . . 7 . . . 28 71 . . . . . 17 12 67 66 137 19 10 . 24 Total Damage 10903 | . . 105 . . . 329 1429 . . . . . 731 648 1264 1732 2604 1077 306 . 678 Kills 80 | . . 1 . . . 3 20 . . . . . 6 5 9 9 13 8 5 . 1 Allies Corrupted 1 | . . . . . . . . . . . . . . . . . 1 . . . . Allies Melted 1 | . . . . . . . . . . . . . . . 1 . . . . . . Intel | -11 -10 -10 -10 -9 -8 -8 -7 -7 -7 -7 -6 -6 -6 -6 -6 -5 -5 -4 -4 -4 -4 ------- Run | Yrd Mat Min Exi Min Mat Sto Fac Low Low Dat Pro Fac Gar Fac Gar Fac Gar Fac Gar Fac Gar Active Infowar (turns) 7774 | . 62 . . . . . 175 . . . . 255 1491 728 900 846 1937 434 411 244 291 Optics 7537 | . . . . . . . . . . . . 255 1491 728 900 846 1937 434 411 244 291 Cloaking 1517 | . . . . . . . . . . . . . . . 616 846 55 . . . . ECM 237 | . 62 . . . . . 175 . . . . . . . . . . . . . . Robot Analysis Total . | . . . . . . . . . . . . . . . . . . . . . . Derelict Logs Recovered 4 | . . 2 . 2 . . . . . . . . . . . . . . . . . Drone Launches 2 | . . . . . 2 . . . . . . . . . . . . . . . . Drone Recoveries 2 | . . . . . 2 . . . . . . . . . . . . . . . . Exploration | -11 -10 -10 -10 -9 -8 -8 -7 -7 -7 -7 -6 -6 -6 -6 -6 -5 -5 -4 -4 -4 -4 ------------- Run | Yrd Mat Min Exi Min Mat Sto Fac Low Low Dat Pro Fac Gar Fac Gar Fac Gar Fac Gar Fac Gar Turns Passed 12839 | 65 422 262 284 486 555 510 1828 215 224 34 117 315 1491 728 900 846 1937 434 450 270 466 Spaces Moved 13159 | 39 225 185 233 342 283 340 2619 334 410 76 222 486 1546 913 759 741 2093 143 439 420 311 Core 284 | 7 . . . . . . . . . . . . . . . . . . 34 167 76 Treads . | . . . . . . . . . . . . . . . . . . . . . . Legs 1487 | 32 225 185 233 342 283 187 . . . . . . . . . . . . . . . Wheels . | . . . . . . . . . . . . . . . . . . . . . . Hover 11388 | . . . . . . 153 2619 334 410 76 222 486 1546 913 759 741 2093 143 405 253 235 Flight . | . . . . . . . . . . . . . . . . . . . . . . Fastest Speed 38 | 50 120 120 120 120 120 42 38 45 45 45 45 42 42 44 46 50 48 48 50 40 40 Average Speed 57 | 130 120 120 120 120 122 87 42 48 45 45 46 47 55 48 58 51 49 50 55 43 68 Slowest Speed 300 | 190 190 120 120 120 190 195 107 115 45 45 52 52 119 110 126 55 107 56 60 50 300 Overloaded Moves . | . . . . . . . . . . . . . . . . . . . . . . Propulsion Burnouts . | . . . . . . . . . . . . . . . . . . . . . . Robots Hopped . | . . . . . . . . . . . . . . . . . . . . . . Potential Cave-ins . | . . . . . . . . . . . . . . . . . . . . . . Cave-ins Triggered . | . . . . . . . . . . . . . . . . . . . . . . Exploration Rate (%) 44 | 4 37 36 61 77 24 43 76 57 68 68 52 11 90 19 60 20 98 3 42 8 29 Regions Visited 21 Branch Regions 8 Pre-discovered Areas 4 | . . 1 1 1 . . . . . 1 . . . . . . . . . . . Known Exits Taken 9 | . 1 . . . 1 1 1 . . . . 1 . 1 . 1 . 1 . 1 . Unknown Exits Taken 8 | 1 . 1 1 1 . . . 1 1 1 1 . . . . . . . . . . Scrap Searched 4 | . . 1 . 1 . . . . 2 . . . . . . . . . . . . Spaces Dug 66 | . . . . . . . . . . . . . 34 3 12 7 10 . . . . Terrain Destroyed 864 | . . 25 . 9 25 1 11 38 . . . 3 190 8 39 73 200 37 198 . 7 Melee . | . . . . . . . . . . . . . . . . . . . . . . Projectile 63 | . . . . . . . . . . . . 3 1 8 7 14 23 . . . 7 AOE 801 | . . 25 . 9 25 1 11 38 . . . . 189 . 32 59 177 37 198 . . Terrain Rammed . | . . . . . . . . . . . . . . . . . . . . . . Walls Destroyed . | . . . . . . . . . . . . . . . . . . . . . . Machines Disabled . | . . . . . . . . . . . . . . . . . . . . . . Actions | -11 -10 -10 -10 -9 -8 -8 -7 -7 -7 -7 -6 -6 -6 -6 -6 -5 -5 -4 -4 -4 -4 --------- Run | Yrd Mat Min Exi Min Mat Sto Fac Low Low Dat Pro Fac Gar Fac Gar Fac Gar Fac Gar Fac Gar Total 17551 | 50 337 213 238 411 441 499 3197 363 448 75 228 564 2055 1151 1149 1162 2834 501 601 503 531 Wait 2857 | . 61 19 2 47 92 70 401 . 36 . . 43 314 170 291 326 338 348 98 76 125 Move 13142 | 38 224 184 232 341 282 339 2618 333 409 75 221 486 1545 913 758 741 2091 143 438 420 311 Hop . | . . . . . . . . . . . . . . . . . . . . . . Pick Up 80 | 6 7 2 1 4 6 6 9 . . . . 4 6 1 6 5 8 . 3 2 4 Fast Attach 85 | 6 5 . 1 1 6 8 8 . 2 . 1 5 7 5 4 2 8 2 4 3 7 Attach 64 | . 1 . . . 2 5 6 3 . . . 3 5 1 5 10 9 1 3 2 8 Detach 33 | . 1 . . . 2 4 3 3 1 . . 1 3 1 . 7 4 1 . . 2 Swap 101 | . . 1 . 3 11 12 25 2 . . . . 10 8 15 2 11 . . . 1 Drop 100 | . 8 1 2 7 10 16 17 1 . . 2 3 4 2 6 3 12 2 1 . 3 Fire 696 | . 28 6 . 4 29 28 72 21 . . . 6 106 50 62 53 153 4 38 . 36 Melee 4 | . . . . . . . . . . . 4 . . . . . . . . . . Ram 13 | . . . . . . . 1 . . . . . . . . . . . 8 . 4 Kick 7 | . 2 . . 4 1 . . . . . . . . . . . . . . . . Crush . | . . . . . . . . . . . . . . . . . . . . . . Escape Stasis 174 | . . . . . . . 26 . . . . 13 39 . . 13 45 . 8 . 30 Rewire 195 | . . . . . . 11 11 . . . . . 16 . 2 . 155 . . . . Trap . | . . . . . . . . . . . . . . . . . . . . . . Miscellaneous . | . . . . . . . . . . . . . . . . . . . . . . Route ------- -11/Scrapyard -10/Materials (discovered 4 exits: [*Mat] / *Min x2 / [*Sub]) -10/Mines (discovered 2 exits: [*Mat] / *Exi) -10/Exiles -9/Mines -8/Materials -8/Storage -7/Factory (discovered 3 exits: *Fac / *Low x2) -7/Lower Caves -7/Lower Caves (discovered 2 exits: *Fac / *Dat) -7/Data Miner -6/Proximity Caves -6/Factory (discovered 2 exits: [*Low] / Gar) -6/Garrison (discovered 3 exits: *Fac x3) -6/Factory -6/Garrison (discovered 2 exits: *Fac x2) -5/Factory -5/Garrison (discovered 4 exits: *Fac x3 / [*Fac]) -4/Factory -4/Garrison -4/Factory -4/Garrison History --------- Turn | Location | Event 3 | -11/Scrapyard | Discovered new exit (range 15) 66 | -11/Scrapyard | Entered Materials 200 | -10/Materials | Identified exit to Mines 301 | -10/Materials | Build established: Mutant 424 | -10/Materials | Discovered new exit (range 7) 451 | -10/Materials | Discovered new exit (range 10) 488 | -10/Materials | Entered Mines 530 | -10/Mines | Learned location of 1 exit from Materials 532 | -10/Mines | Learned location of Storage (-8) 544 | -10/Mines | Received a Mining Laser from a helpful Derelict 725 | -10/Mines | Discovered new exit (range 10) 742 | -10/Mines | Deemed a non-threat by the Exiles lab entrance 742 | -10/Mines | Discovered new exit (range 5) 750 | -10/Mines | Entered Exiles 750 | -10/Exiles | Accompanied by 1 ally 779 | -10/Exiles | Met 8R-AWN 800 | -10/Exiles | Met EX-HEX 836 | -10/Exiles | Met EX-BIN 849 | -10/Exiles | Aligned with FarCom system 850 | -10/Exiles | Given EX-Vault access code 880 | -10/Exiles | Opened EX-Vault 887 | -10/Exiles | Found Skeleton Box 914 | -10/Exiles | Warned to stay clear of 0b10 Research branches 947 | -10/Exiles | Met EX-DEC 988 | -10/Exiles | Learned location of Zion (-6) 1023 | -10/Exiles | Discovered new exit (range 10) 1034 | -10/Exiles | Left Exiles lab with Skeleton Box 1034 | -10/Exiles | Entered Mines 1209 | -9/Mines | Found the Drone Emporium 1220 | -9/Mines | Found Prototype Device 1403 | -9/Mines | Met a Derelict who couldn't figure out how to use a Trap Extractor 1502 | -9/Mines | Discovered new exit (range 5) 1520 | -9/Mines | Entered Materials 1520 | -8/Materials | Evolved 4 slots: Propulsion x1, Utility x3 1520 | -8/Materials | Identified Decoy Drone Bay 1521 | -8/Materials | Identified exit to Storage 2075 | -8/Materials | Entered Storage 2287 | -8/Storage | Assisted by bots powering up and referring to "LRC-V3" 2289 | -8/Storage | Identified exit to Factory 2539 | -8/Storage | Remotely autohacked Sealed Heavy Doors 2585 | -8/Storage | Entered Factory 2585 | -7/Factory | Accompanied by 10 allies 2585 | -7/Factory | Evolved 2 slots: Power x1, Propulsion x1 2586 | -7/Factory | Identified exit to Lower Caves 2606 | -7/Factory | Build established: Commander-Mutant 2836 | -7/Factory | Garrison activated, responded to threat 2879 | -7/Factory | Lost 3 allies 3145 | -7/Factory | Lost 4 allies 3401 | -7/Factory | Build established: Mutant 3430 | -7/Factory | Discovered exit to Lower Caves (range 10) 3706 | -7/Factory | Discovered new exit (range 15) 4028 | -7/Factory | Cargo convoy interrupted 4123 | -7/Factory | Hacking Suite fried by hacking feedback 4412 | -7/Factory | Found Powered Armor 4413 | -7/Factory | Entered Lower Caves 4614 | -7/Lower Caves | Discovered new exit (range 10) 4628 | -7/Lower Caves | Entered another Lower Caves area 4638 | -7/Lower Caves | Discovered new exit (range 5) 4652 | -7/Lower Caves | Entered a destroyed Warlord outpost 4850 | -7/Lower Caves | Discovered new exit (range 4) 4852 | -7/Lower Caves | Entered Data Miner 4852 | -7/Data Miner | Discovered new exit (range 6) 4861 | -7/Data Miner | Met Data Miner 4869 | -7/Data Miner | Learned location of Section 7 (-2) 4869 | -7/Data Miner | Acquired the access code to Warlord's prototype stash 4875 | -7/Data Miner | Received God Mode back door access code from Data Miner 4886 | -7/Data Miner | Entered Proximity Caves 5000 | -6/Proximity Caves | Discovered new exit (range 6) 5003 | -6/Proximity Caves | Entered Factory 5003 | -6/Factory | Evolved 2 slots: Propulsion x1, Utility x1 5061 | -6/Factory | Discovered new exit (range 6) 5318 | -6/Factory | Identified exit to Garrison 5318 | -6/Factory | Entered Garrison 5346 | -6/Garrison | Triggered checkpoint 5414 | -6/Garrison | Lost 3 parts (1p2n) 5463 | -6/Garrison | Found Gamma Bomb Array 5472 | -6/Garrison | Garrison Relay disabled 5526 | -6/Garrison | Triggered checkpoint 5572 | -6/Garrison | Spotted B-75 Beast 5574 | -6/Garrison | Discovered new exit (range 13) 5587 | -6/Garrison | Remotely autohacked Sealed Heavy Doors 5778 | -6/Garrison | Triggered checkpoint 5836 | -6/Garrison | Triggered checkpoint 5854 | -6/Garrison | Garrison Relay disabled 5936 | -6/Garrison | Discovered new exit (range 17) 6022 | -6/Garrison | Triggered checkpoint 6038 | -6/Garrison | Discovered new exit (range 13) 6142 | -6/Garrison | Triggered checkpoint 6284 | -6/Garrison | Triggered checkpoint 6337 | -6/Garrison | Rewired B-75 Beast 6360 | -6/Garrison | Allies destroyed B-75 Beast 6558 | -6/Garrison | Installed Relay Interface Framework 6568 | -6/Garrison | Garrison Relay disabled 6622 | -6/Garrison | Triggered checkpoint 6809 | -6/Garrison | Entered Factory 6809 | -6/Factory | Accompanied by 2 allies 6938 | -6/Factory | Build established: Bothacker-Mutant 7537 | -6/Factory | Identified exit to Garrison 7537 | -6/Factory | Entered Garrison 7584 | -6/Garrison | Garrison Relay disabled 7599 | -6/Garrison | Triggered checkpoint 7701 | -6/Garrison | Lost 4 parts (2n1u1w) 7751 | -6/Garrison | Triggered checkpoint 7759 | -6/Garrison | Triggered checkpoint 7819 | -6/Garrison | Lost 3 allies 8063 | -6/Garrison | Discovered new exit (range 12) 8078 | -6/Garrison | Triggered checkpoint 8091 | -6/Garrison | Garrison Relay disabled 8096 | -6/Garrison | Triggered checkpoint 8247 | -6/Garrison | Triggered checkpoint 8262 | -6/Garrison | Garrison Relay disabled 8289 | -6/Garrison | Triggered checkpoint 8312 | -6/Garrison | Expanded RIF knowledge: Patrol Navigation 8315 | -6/Garrison | Triggered checkpoint 8335 | -6/Garrison | Discovered new exit (range 16) 8351 | -6/Garrison | Expanded RIF knowledge: Robot Detection 8437 | -6/Garrison | Entered Factory 8437 | -5/Factory | Accompanied by 4 allies 8437 | -5/Factory | Evolved 2 slots: Utility x2 8600 | -5/Factory | Repaired Aerolev Unit 9015 | -5/Factory | Destroyed 7 combat bots 9228 | -5/Factory | Garrison activated, responded to threat 9280 | -5/Factory | Identified exit to Garrison 9283 | -5/Factory | Entered Garrison 9283 | -5/Garrison | Accompanied by 5 allies 9323 | -5/Garrison | Triggered checkpoint 9330 | -5/Garrison | Spotted B-75 Beast 9331 | -5/Garrison | Triggered checkpoint 9339 | -5/Garrison | Destroyed B-75 Beast 9360 | -5/Garrison | Destroyed 20 combat bots 9386 | -5/Garrison | Remotely autohacked Sealed Heavy Doors 9386 | -5/Garrison | Rescued a captive Derelict 9387 | -5/Garrison | Rescued a captive Derelict 9479 | -5/Garrison | Triggered checkpoint 9540 | -5/Garrison | Triggered checkpoint 9581 | -5/Garrison | Garrison Relay disabled 9713 | -5/Garrison | Triggered checkpoint 9843 | -5/Garrison | Discovered new exit (range 11) 9859 | -5/Garrison | Triggered checkpoint 9876 | -5/Garrison | Garrison Relay disabled 9931 | -5/Garrison | Triggered checkpoint 9958 | -5/Garrison | Triggered checkpoint 9978 | -5/Garrison | Discovered new exit (range 13) 10027 | -5/Garrison | Triggered checkpoint 10054 | -5/Garrison | Garrison Relay disabled 10135 | -5/Garrison | Triggered checkpoint 10166 | -5/Garrison | Discovered new exit (range 6) 10207 | -5/Garrison | Lost 3 allies 10240 | -5/Garrison | Discovered new exit (range 7) 10259 | -5/Garrison | Triggered checkpoint 10334 | -5/Garrison | Expanded RIF knowledge: Coupler Efficiency 10467 | -5/Garrison | Garrison Relay disabled 10532 | -5/Garrison | Triggered checkpoint 10564 | -5/Garrison | Garrison Relay disabled 10735 | -5/Garrison | Spotted Executioner 10735 | -5/Garrison | Spotted Executioner 10931 | -5/Garrison | Build established: Commander-Mutant 10967 | -5/Garrison | Allies destroyed Executioner 10974 | -5/Garrison | Allies destroyed Executioner 11001 | -5/Garrison | Lost 4 allies 11220 | -5/Garrison | Entered Factory 11220 | -4/Factory | Accompanied by 16 allies 11220 | -4/Factory | Evolved 2 slots: Utility x2 11470 | -4/Factory | First assault squad dispatched 11605 | -4/Factory | High security lockdown imminent 11632 | -4/Factory | Identified exit to Garrison 11654 | -4/Factory | Entered Garrison 11654 | -4/Garrison | Accompanied by 5 allies 11673 | -4/Garrison | Triggered checkpoint 11673 | -4/Garrison | Triggered checkpoint 11689 | -4/Garrison | Spotted B-86 Titan 11750 | -4/Garrison | Lost 5 allies 11878 | -4/Garrison | Destroyed B-86 Titan 11996 | -4/Garrison | Build established: Mutant 12077 | -4/Garrison | Found Relay Coupler [Proto] 12078 | -4/Garrison | System corruption reached 10% 12084 | -4/Garrison | Spotted Striker 12101 | -4/Garrison | Discovered new exit (range 8) 12104 | -4/Garrison | Entered Factory 12118 | -4/Factory | Lost 7 parts (1p2n4u) 12354 | -4/Factory | First assault squad dispatched 12374 | -4/Factory | Identified exit to Garrison 12374 | -4/Factory | Entered Garrison 12712 | -4/Garrison | Expanded RIF knowledge: Command Fork 12730 | -4/Garrison | Core integrity fell below 50% 12751 | -4/Garrison | Garrison Relay disabled 12791 | -4/Garrison | Lost 8 parts (2n4u2w) 12794 | -4/Garrison | Triggered checkpoint 12802 | -4/Garrison | Triggered checkpoint 12822 | -4/Garrison | Triggered checkpoint 12835 | -4/Garrison | Core integrity fell below 20% 12840 | -4/Garrison | Destroyed by G-67 Veteran with Plasma Rifle Last Messages --------------- 12825_ Veteran 7c destroyed. 12825_ Penetrated by Slug. 12825_ Slug penetrates H-77 Assassin. 12825_ Antigrav System destroyed. 12825_ Slug penetrates Veteran 7e. 12825_ Veteran 7e suffers critical hit (Destroy). 12825_ H-77 Assassin destroyed. 12826_ Acquired 79 matter. 12828_ H-77 Assassin heat spikes uncontrollably. 12828_ H-77 Assassin critical meltdown. 12828_ Slug penetrates Wall. 12830_ Veteran 7e destroyed. 12830_ Broken Imp. Heat Sink destroyed. 12833_ Critical hit (Burn: +37). 12835_ Acquired 64 matter. 12835_ Penetrated by Slug. 12835_ Plasma Rifle destroyed. 12836_ Penetrated by Slug. 12840_ System corrupted: Matter fused (-10). Map ----- +----------------------------------------------------+ | ?????????????????????????????????????????????????? | | ?????????????????????????????????????????????????? | | ?????????????????????????????????????????????????? | | ?????????????????????????????????????????????????? | | ?????????????????????????????????????????????????? | | ?????????????????????????????????????????????????? | | ?????????????????????????????????????????????????? | | ?????????????????????????????????????????????????? | | ?????????????????????????????????????????????????? | | ?????????????????????????????????????????????????? | | ?????????????????????????????????????????????????? | | ?????????????????????????????????????????????????? | | ###??????####????????????????????????????????????? | | #??????# ????????????????????????????????????? | | ##?????# ????????????????????????????????????? | | "#?????# #????????????????????????????????????? | | ^ ##?????# #????????????????????????????????????? | | #??????# #????????????????????????????????????? | | #??????# #????????????????????????????????????? | | #??????# #????????????????????????????????????? | | ######## #????????????????????????????????????? | | ## ## #???????#####????????????????????????? | | ## ## ##??????# #????????????????????????? | | %== ######## #######??????????????????? | | %* %[= [g g # #?????????? | | [%*[ [ @ ; ????????? | | ## ## %############# #####???????????????? | | ## ## !###??????????""""#??????????????????? | | #???????????####??????????????????? | | % ^ #?????????????????????????????????? | | #?????????????????????????????????? | | ^ #?????????????????????????????????? | | ## ## ###?????????????????????????????????? | | ## ## #???????????????????????????????????? | | ??????????????????????????????????? | | ?????????????????????????????????? | | ####????????????????gg??????????????? | | ####""""## ##???????????????????????????????????? | | ??????gg?# #????????????????????????????????????? | | ?????????? #????s???????????????????????????????? | | ?????????? #????s???????????????????????????????? | | ?????????? #????s???????????????????????????????? | | ?????????? #???s????????????????????????????????? | | ??????????? ?????????????????????????????????????? | | ????????????????????????????????ggg??????????????? | | ?????????????????????????????????????????????????? | | ?????????????????????????????????????????????????? | | ?????????????????????????????????????????????????? | | ?????????????????????????????????????????????????? | | ?????????????????????????????????????????????????? | +----------------------------------------------------+ Best States ------------- Heat Dissipation 69 Energy Generation 43 Energy Capacity 480 Matter Stores 300 Matter Capacity 300 Sight Range 22 Terrain Scan Density 10 ECM Strength 2 Cloak Strength 2 Additional Mass Support 12 Armor Coverage 450 Propulsion Shielding 66 Phase Shifting 15 Evasion (%) 71 Targeting Accuracy 5 Energy Filtering 30 Relay Coupler Types 7 Relay Coupler Value 207 Item Schematics ----------------- Combat Drone Bay | -7/Data Miner | Free Lgt. Regenerative Plating | -7/Data Miner | Free Cld. Aerolev Unit | -7/Data Miner | Free Gravity Neutralizer | -7/Data Miner | Free Imp. Lightning Gun | -7/Data Miner | Free Nuclear Pulse Array | -7/Data Miner | Free Lyr. Heavy Armor Plating | -7/Data Miner | Free Wave Gun | -7/Data Miner | Free Adv. System Restoration Module | -7/Data Miner | Free Impulse Thruster | -7/Data Miner | Free Graphene Brace | -7/Data Miner | Free Robot Schematics ------------------ H-55 Commando | -7/Data Miner | Free M-28 Smith | -7/Data Miner | Free A-15 Conveyor | -7/Data Miner | Free R-10 Processor | -7/Data Miner | Free Fabricated ------------ Nothing Repaired ---------- Aerolev Unit | 18% | -5/Factory Alien Tech Used ----------------- None Achievements -------------- Assimilation Complete Challenges ------------ None Game ------ Seed GravjetDispersalTriangulator Manual? 0 Play Time 03:13:30 Cumulative 337.7 hours Start 2025.08.10 @ 03:25:27 End 2025.08.10 @ 06:40:41 Sessions 1 Manual Loads 0 Difficulty Rogue Special Mode None Game No. 166 Rogue 166 Adventurer 0 Explorer 0 Win Type - Total 7 Types 4/0/2/0/0/0/0/0/0/1 Lore% 82 Gallery% 82 Achievement% 68 Wizard Run 0 Options --------- Layout 1 ASCII 0 Keyboard 0 Movement Mouse Keybinds 0 Fullscreen 1 Font 24/Smallcaps Map View 50x35 Zoom Use 0% Tactical HUD 1 Map Filters NONE Filters NONE Steam 1 RUN: 5abb836b-2c4e-4867-b33e-46fca2734f09